fUST/lending_fUST_20250608
["ID","MTS","AMOUNT","RATE_DAILY","PERIOD"]
[364939472,1749323361148,-440.0,0.00020952,2]
[364939473,1749323361171,-448.19,0.00020953,2]
[364939474,1749323361193,-440.0,0.00020953,2]
[364939475,1749323361215,-492.26,0.00020953,2]
[364939476,1749323361237,-207.4,0.00021067,2]
[364939477,1749323361258,-309.937858,0.00021067,2]
[364939478,1749323361279,-1357.39,0.00021225,2]
[364939479,1749323361302,-440.0,0.00021226,2]
[364939480,1749323361327,-440.0,0.00021226,2]
[364939481,1749323361349,-448.19,0.00021227,2]
[364939482,1749323361373,-443.84,0.00021227,2]
[364939483,1749323361393,-180.0,0.00021331,2]
[364939484,1749323361417,-162.951236,0.00021404,2]
[364939485,1749323361440,-1357.39,0.00021499,2]
[364939486,1749323361466,-440.0,0.000215,2]
[364939487,1749323361490,-448.19,0.00021501,2]
[364939488,1749323361543,360.0,0.00019583,2]
[364939489,1749323361590,202.96123557,0.000209,4]
[364939490,1749323361619,202.96123549,0.00021038,4]
[364939491,1749323361645,440.0,0.00019583,2]
[364939492,1749323361676,202.96123549,0.00021176,4]
[364939493,1749323361708,440.0,0.00019583,2]
[364939494,1749323361740,202.96123549,0.00021314,5]
[364939495,1749323362030,202.96123549,0.00021452,5]
[364939496,1749323362319,202.96123549,0.0002159,5]
[364939497,1749323364937,440.0,0.00019583,2]
[364939498,1749323365183,440.0,0.00019857,2]
[364939499,1749323365551,440.0,0.00020131,2]
[364939500,1749323365950,440.0,0.00020405,2]
[364939501,1749323366029,440.0,0.00020679,2]
[364939502,1749323366300,440.0,0.00020953,2]
[364939503,1749323366557,440.0,0.00021227,2]
[364939504,1749323366800,440.0,0.00021501,2]
[364939505,1749323366923,440.0,0.00019583,2]
[364939506,1749323377191,440.0,0.00019583,2]
[364939507,1749323385428,440.0,0.00019583,2]
[364939509,1749323390881,440.0,0.00019583,2]
[364939510,1749323391140,440.0,0.00019857,2]
[364939511,1749323393671,440.0,0.00019583,2]
[364939512,1749323395068,371.67509405,0.00019583,2]
[364939513,1749323399982,440.0,0.00019583,2]
[364939514,1749323400374,440.0,0.00019583,2]
[364939515,1749323400610,440.0,0.00019857,2]
[364939516,1749323400877,440.0,0.00020131,2]
[364939517,1749323401127,440.0,0.00020405,2]
[364939518,1749323401387,440.0,0.00020679,2]
[364939519,1749323401630,303.88264868,0.00020953,2]
[364939520,1749323406275,440.0,0.00019583,2]
[364939521,1749323406594,380.0,0.00019857,2]
[364939522,1749323414872,440.0,0.00019583,2]
[364939523,1749323418264,207.4,0.00021067,2]
[364939531,1749323432456,-202.96123549,0.00021728,5]
[364939532,1749323432467,-1357.39,0.00021773,2]
[364939533,1749323432478,-440.0,0.00021775,2]
[364939534,1749323432488,-300.0,0.00021784,2]
[364939535,1749323432499,-2095.84074919,0.00021785,2]
[364939536,1749323432618,-12895.06657813,0.00021785,2]
[364939537,1749323438563,-423.90693687,0.00021773,2]
[364939538,1749323438575,-11820.64638341,0.00021785,2]
[364939550,1749323441091,-2193.98586684,0.00021785,2]
[364939551,1749323441101,-440.0,0.00021785,2]
[364939552,1749323441112,-410.8,0.00021785,2]
[364939553,1749323441122,-440.0,0.00021785,2]
[364939554,1749323441131,-440.0,0.00021785,2]
[364939555,1749323441141,-440.0,0.00021785,2]
[364939556,1749323441151,-440.0,0.00021785,2]
[364939557,1749323441162,-430.0,0.00021785,2]
[364939558,1749323441171,-430.0,0.00021785,2]
[364939559,1749323441181,-440.0,0.00021785,2]
[364939560,1749323441191,-440.0,0.00021785,2]
[364939561,1749323441202,-420.0,0.00021785,2]
[364939562,1749323441212,-440.0,0.00021785,2]
[364939563,1749323441221,-280.37960079,0.00021785,2]
[364939564,1749323441231,-244.02038067,0.00021799,2]
[364939565,1749323441241,-151.0,0.00021853,2]
[364939566,1749323441251,-153.13558257,0.00021853,2]
[364939567,1749323441261,-159.62933508,0.00021853,2]
[364939568,1749323441271,-201.68662996,0.00021853,2]
[364939569,1749323441281,-151.0,0.00021853,2]
[364939570,1749323441293,-151.0,0.00021853,2]
[364939571,1749323441305,-154.00667859,0.00021853,2]
[364939572,1749323441314,-153.75203831,0.00021853,2]
[364939573,1749323441324,-151.82357693,0.00021853,2]
[364939574,1749323441333,-202.96123549,0.00021866,6]
[364939575,1749323441344,-151.0,0.0002188,2]
[364939576,1749323441361,-151.0,0.0002188,2]
[364939577,1749323441371,-151.0,0.0002188,2]
[364939578,1749323441382,-198.0,0.00021908,2]
[364939579,1749323441391,-151.0,0.00021908,2]
[364939580,1749323441401,-151.0,0.00021908,2]
[364939581,1749323441411,-500.0,0.00021917,2]
[364939582,1749323441421,-151.0,0.00021935,2]
[364939583,1749323441430,-158.6675179,0.00021935,2]
[364939584,1749323441440,-1067.50718043,0.00021939,2]
[364939585,1749323441450,-207.48916409,0.00021963,2]
[364939586,1749323441460,-500.0,0.00021973,2]
[364939587,1749323441470,-159.77840762,0.00021973,2]
[364939588,1749323441479,-500.0,0.00021973,2]
[364939589,1749323441489,-200.0,0.00021999,2]
[364939590,1749323441498,-376.46224128,0.00021999,2]
[364939591,1749323441508,-500.0,0.00021999,2]
[364939592,1749323441517,-518.79242094,0.00021999,2]
[364939593,1749323441527,-500.0,0.00021999,2]
[364939594,1749323441537,-68156.79547152,0.00022,2]
[364939595,1749323443621,-7719.4651942,0.00022,2]
[364939596,1749323443633,-267.78290765,0.00022,2]
[364939597,1749323443673,-23385.63725212,0.00022,2]
[364939598,1749323443683,-64554.61,0.00022,7]
[364939599,1749323443694,-44235.26098809,0.00022,2]
[364939600,1749323443704,-227.63,0.00022,7]
[364939601,1749323443714,-5015.10292,0.00022,2]
[364939602,1749323443725,-151.0,0.00022,7]
[364939603,1749323443735,-184.30823,0.00022,7]
[364939605,1749323443746,-151.0,0.00022,7]
[364939606,1749323443756,-151.0,0.00022,7]
[364939607,1749323443766,-151.0,0.00022,7]
[364939608,1749323443775,-151.0,0.00022,7]
[364939609,1749323443786,-151.0,0.00022,7]
[364939610,1749323443795,-151.0,0.00022,7]
[364939611,1749323443805,-208.526703,0.00022,7]
[364939612,1749323443815,-208.526703,0.00022,7]
[364939613,1749323443825,-151.0,0.00022,7]
[364939614,1749323443835,-151.0,0.00022,7]
[364939615,1749323443844,-151.0,0.00022,7]
[364939616,1749323443854,-151.0,0.00022,7]
[364939617,1749323443864,-151.0,0.00022,7]
[364939618,1749323443874,-180.749662,0.00022,7]
[364939619,1749323443884,-151.0,0.00022,7]
[364939620,1749323443894,-151.0,0.00022,7]
[364939621,1749323443904,-300.661725,0.00022,7]
[364939622,1749323443913,-232.801653,0.00022,2]
[364939623,1749323443923,-232.801653,0.00022,2]
[364939624,1749323443933,-232.801653,0.00022,2]
[364939625,1749323443943,-414.628684,0.00022,7]
[364939626,1749323443954,-232.801653,0.00022,2]
[364939627,1749323443963,-414.628684,0.00022,7]
[364939628,1749323443973,-597.6976805,0.00022,7]
[364939629,1749323443983,-161.0,0.00022,2]
[364939630,1749323443993,-202.96123549,0.00022003,6]
[364939631,1749323444004,-1357.39,0.00022047,2]
[364939632,1749323444014,-440.0,0.00022049,2]
[364939633,1749323444023,-430.0,0.00022059,2]
[364939634,1749323444033,-430.0,0.00022059,2]
[364939635,1749323444043,-420.0,0.00022059,2]
[364939636,1749323444052,-430.0,0.00022059,2]
[364939637,1749323444062,-410.0,0.00022059,2]
[364939638,1749323444071,-151.0,0.00022059,7]
[364939639,1749323444081,-166.620712,0.00022059,7]
[364939640,1749323444091,-208.526703,0.00022059,7]
[364939641,1749323444100,-208.526703,0.00022059,7]
[364939642,1749323444110,-500.0,0.00022125,2]
[364939643,1749323444122,-500.0,0.00022125,2]
[364939644,1749323444132,-500.0,0.00022125,2]
[364939645,1749323444142,-202.96123549,0.00022141,6]
[364939646,1749323444152,-409.36,0.00022191,2]
[364939647,1749323444162,-536.1,0.000222,7]
[364939648,1749323444172,-500.0,0.0002226,2]
[364939649,1749323444182,-202.96123549,0.00022279,6]
[364939650,1749323444192,-1357.39,0.00022321,2]
[364939651,1749323444201,-440.0,0.00022323,2]
[364939652,1749323444211,-202.96123549,0.00022417,7]
[364939653,1749323444221,-215.0738,0.00022436,2]
[364939654,1749323444231,-503.2118004,0.00022521,2]
[364939655,1749323444241,-202.96123549,0.00022555,7]
[364939656,1749323444251,-1357.39,0.00022595,2]
[364939657,1749323444260,-440.0,0.00022597,2]
[364939658,1749323444270,-202.96123549,0.00022693,7]
[364939659,1749323444279,-166.76446816,0.00022766,2]
[364939660,1749323444289,-202.96123549,0.00022831,8]
[364939661,1749323444298,-1357.39,0.00022869,2]
[364939662,1749323444308,-440.0,0.00022871,2]
[364939663,1749323444317,-151.0,0.00022886,7]
[364939665,1749323444327,-151.0,0.00022886,7]
[364939667,1749323444336,-151.0,0.00022886,7]
[364939668,1749323444345,-151.0,0.00022886,7]
[364939669,1749323444355,-657.142446,0.00022886,7]
[364939670,1749323444375,-657.142446,0.00022886,7]
[364939671,1749323444388,-151.0,0.00022886,7]
[364939672,1749323444399,-151.0,0.00022886,7]
[364939673,1749323444408,-151.0,0.00022886,7]
[364939674,1749323444419,-200.0,0.00022966,2]
[364939675,1749323444429,-6009.91948202,0.00022967,2]
[364939676,1749323444442,-174.205046,0.00022967,7]
[364939677,1749323444452,-174.205046,0.00022967,7]
[364939678,1749323444463,-414.628684,0.00022967,7]
[364939679,1749323444473,-414.628684,0.00022967,7]
[364939680,1749323444486,-202.96123549,0.00022969,8]
[364939681,1749323444496,-1000.0,0.00023,23]
[364939682,1749323444506,-946.03,0.00023008,2]
[364939683,1749323444516,-202.96123549,0.00023107,8]
[364939684,1749323444526,-1357.39,0.00023143,2]
[364939685,1749323444536,-151.0,0.00023144,7]
[364939686,1749323444546,-151.0,0.00023144,7]
[364939687,1749323444557,-440.0,0.00023145,2]
[364939688,1749323444575,-192.522677,0.00023145,7]
[364939689,1749323444587,-192.522677,0.00023145,7]
[364939690,1749323444598,-202.96123549,0.00023245,8]
[364939691,1749323444609,-227.63,0.000233,7]
[364939692,1749323444620,-500.0,0.00023373,2]
[364939693,1749323444630,-202.96123549,0.00023383,9]
[364939694,1749323444641,-1357.39,0.00023417,2]
[364939695,1749323444651,-440.0,0.00023419,2]
[364939696,1749323444661,-150.0,0.00023448,2]
[364939697,1749323444672,-150.0,0.00023448,2]
[364939698,1749323444683,-202.96123549,0.00023521,9]
[364939699,1749323444693,-150.0,0.00023524,2]
[364939700,1749323444704,-154.88,0.00023524,2]
[364939701,1749323444714,-150.0,0.00023524,2]
[364939702,1749323444725,-961.0,0.00023524,2]
[364939703,1749323444735,-2225.0,0.00023524,2]
[364939704,1749323444745,-709.0,0.00023524,2]
[364939705,1749323444755,-536.1,0.000236,7]
[364939706,1749323444765,-151.0,0.00023606,7]
[364939707,1749323444775,-459.456446,0.00023618,3]
[364939708,1749323444787,-202.96123549,0.00023659,9]
[364939709,1749323444797,-753.50889057,0.00023691,2]
[364939884,1749323469254,440.0,0.00019581,2]
[364939885,1749323473082,430.0,0.00019581,2]
[364939886,1749323475206,440.0,0.00019582,2]
[364939887,1749323475296,440.0,0.00019581,2]
[364939888,1749323475924,440.0,0.00019855,2]
[364939889,1749323477676,440.0,0.00019583,2]
[364939890,1749323481995,440.0,0.00019583,2]
[364939892,1749323484032,440.0,0.00019583,2]
[364939893,1749323485540,440.0,0.00019581,2]
[364939894,1749323486147,544.74875674,0.00019583,2]
[364939895,1749323486227,440.0,0.00019583,2]
[364939896,1749323486452,162.951236,0.00013699,2]
[364939897,1749323490894,440.0,0.00019583,2]
[364939898,1749323492870,440.0,0.00019581,2]
[364939899,1749323493502,440.0,0.00019583,2]
[364939900,1749323494725,440.0,0.00019581,2]
[364939901,1749323497823,440.0,0.00019583,2]
[364939902,1749323503304,420.0,0.00019583,2]
[364939903,1749323509869,440.0,0.00019583,2]
[364939904,1749323520930,440.0,0.00019581,2]
[364939905,1749323521713,348.23344445,0.00019583,2]
[364939906,1749323526886,440.0,0.00019583,2]
[364939907,1749323527154,361.26460871,0.00019857,2]
[364939908,1749323529613,440.0,0.00019583,2]
[364939909,1749323533078,500.0,0.00019583,2]
[364939910,1749323533338,500.0,0.00019583,2]
[364939911,1749323533574,500.0,0.00019583,2]
[364939912,1749323533827,500.0,0.00019856,2]
[364939913,1749323534069,400.81189011,0.00019856,2]
[364939914,1749323536827,440.0,0.00019583,2]
[364939915,1749323541740,440.0,0.00019583,2]
[364939916,1749323543406,440.0,0.00019581,2]
[364939917,1749323545252,440.0,0.00019581,2]
[364939918,1749323545277,430.0,0.00019583,2]
[364939919,1749323547286,440.0,0.00019582,2]
[364939920,1749323547622,440.0,0.00019856,2]
[364939921,1749323547874,440.0,0.0002013,2]
[364939922,1749323548130,162.69,0.00020404,2]
[364939923,1749323651306,238059.33458391,0.00025479,120]
[364939924,1749323651334,121150.66541609,0.00025479,120]
[364939925,1749324097475,274.6363756,0.0001865,2]
[364939928,1749324210218,305.260381,0.00018578,2]
[364939929,1749324324562,487.7530528,0.00018578,2]
[364939931,1749324451132,-158.18735429,0.00019478,2]
[364939932,1749324451154,-374.44823795,0.00019483,2]
[364939933,1749324451176,-500.0,0.00019573,2]
[364939934,1749324451197,-500.0,0.00019573,2]
[364939935,1749324451218,-500.0,0.00019573,2]
[364939936,1749324451240,-300.0,0.00019575,2]
[364939937,1749324451264,-500.0,0.00019576,2]
[364939938,1749324451287,-500.0,0.00019576,2]
[364939939,1749324451309,-179.77449933,0.00019576,2]
[364939940,1749324451330,-500.0,0.00019576,2]
[364939941,1749324451353,-500.0,0.00019576,2]
[364939942,1749324451375,-500.0,0.00019576,2]
[364939943,1749324451398,-500.0,0.00019576,2]
[364939944,1749324451421,-500.0,0.00019576,2]
[364939945,1749324451442,-500.0,0.00019576,2]
[364939946,1749324451465,-155.48426591,0.00019576,2]
[364939947,1749324451487,-500.0,0.00019576,2]
[364939948,1749324451508,-500.0,0.00019576,2]
[364939949,1749324451530,-467.48847649,0.00019576,2]
[364939950,1749324451551,-650.31340512,0.00019576,2]
[364939951,1749324451573,-500.0,0.00019576,2]
[364939952,1749324451594,-500.0,0.00019576,2]
[364939953,1749324451615,-396.9346019,0.00019576,2]
[364939954,1749324451637,-500.0,0.00019576,2]
[364939955,1749324451661,-500.0,0.00019576,2]
[364939956,1749324451682,-458.82058516,0.00019576,2]
[364939957,1749324451705,-500.0,0.00019576,2]
[364939958,1749324451726,-500.0,0.00019576,2]
[364939959,1749324451747,-500.0,0.00019576,2]
[364939960,1749324451768,-500.0,0.00019576,2]
[364939961,1749324451791,-500.0,0.00019576,2]
[364939962,1749324451814,-500.0,0.00019576,2]
[364939963,1749324451838,-500.0,0.00019576,2]
[364939964,1749324451860,-500.0,0.00019576,2]
[364939965,1749324451881,-302.85742361,0.00019576,2]
[364939966,1749324451904,-500.0,0.00019576,2]
[364939967,1749324451926,-500.0,0.00019576,2]
[364939968,1749324451952,-500.0,0.00019576,2]
[364939969,1749324451975,-500.0,0.00019576,2]
[364939970,1749324451998,-500.0,0.00019576,2]
[364939971,1749324452021,-500.0,0.00019576,2]
[364939972,1749324452046,-500.0,0.00019576,2]
[364939973,1749324452069,-500.0,0.00019576,2]
[364939974,1749324452091,-321.00497901,0.00019576,2]
[364939975,1749324452112,-500.0,0.00019576,2]
[364939976,1749324452134,-500.0,0.00019576,2]
[364939977,1749324452157,-499.99999999,0.00019576,2]
[364939978,1749324452180,-500.0,0.00019576,2]
[364939979,1749324452204,-544.63663678,0.00019576,2]
[364939980,1749324452225,-263.5235689,0.00019576,2]
[364939981,1749324452248,-500.0,0.00019576,2]
[364939982,1749324452270,-300.0,0.00019576,2]
[364939983,1749324452292,-30231.94827063,0.00019577,2]
[364939984,1749324452315,-430.0,0.00019578,2]
[364939985,1749324452346,-440.0,0.00019578,2]
[364939986,1749324452368,-440.0,0.00019578,2]
[364939987,1749324452391,-430.0,0.00019578,2]
[364939988,1749324452412,-440.0,0.00019578,2]
[364939989,1749324452434,-440.0,0.00019578,2]
[364939990,1749324452458,-1716.02,0.00019578,2]
[364939991,1749324452483,-440.0,0.00019578,2]
[364939992,1749324452504,-430.0,0.00019578,2]
[364939993,1749324452528,-440.0,0.00019578,2]
[364939994,1749324452549,-440.0,0.00019578,2]
[364939995,1749324452572,-440.0,0.00019578,2]
[364939996,1749324452595,-440.0,0.00019578,2]
[364939997,1749324452619,-440.0,0.00019578,2]
[364939998,1749324452640,-440.0,0.00019578,2]
[364939999,1749324452661,-430.0,0.00019578,2]
[364940000,1749324452684,-440.0,0.00019578,2]
[364940001,1749324452708,-440.0,0.00019578,2]
[364940002,1749324452731,-440.0,0.00019578,2]
[364940003,1749324452757,-440.0,0.00019578,2]
[364940004,1749324452794,-440.0,0.00019578,2]
[364940005,1749324452821,-440.0,0.00019578,2]
[364940006,1749324452847,-383.06099492,0.00019578,2]
[364940007,1749324454122,-194.44171917,0.00019578,2]
[364940008,1749324454152,-430.0,0.0001958,2]
[364940009,1749324454179,-440.0,0.0001958,2]
[364940010,1749324454209,-440.0,0.0001958,2]
[364940011,1749324454236,-430.0,0.0001958,2]
[364940012,1749324454264,-440.0,0.0001958,2]
[364940013,1749324454293,-440.0,0.0001958,2]
[364940014,1749324454320,-440.0,0.0001958,2]
[364940015,1749324454347,-440.0,0.0001958,2]
[364940016,1749324454374,-430.0,0.0001958,2]
[364940017,1749324454403,-440.0,0.0001958,2]
[364940018,1749324454430,-440.0,0.0001958,2]
[364940019,1749324454457,-434.70968414,0.0001958,2]
[364940020,1749324454485,-430.0,0.0001958,2]
[364940021,1749324454511,-440.0,0.0001958,2]
[364940022,1749324454538,-420.0,0.0001958,2]
[364940023,1749324454565,-440.0,0.0001958,2]
[364940024,1749324454596,-440.0,0.0001958,2]
[364940025,1749324454849,-430.0,0.0001958,2]
[364940026,1749324454874,-440.0,0.0001958,2]
[364940027,1749324454897,-440.0,0.0001958,2]
[364940028,1749324454922,-440.0,0.0001958,2]
[364940029,1749324454943,-430.40798095,0.0001958,2]
[364940030,1749324454970,-440.0,0.0001958,2]
[364940031,1749324454995,-201.87028084,0.0001958,2]
[364940032,1749324455018,-440.0,0.0001958,2]
[364940033,1749324455043,-440.0,0.0001958,2]
[364940034,1749324455068,-440.0,0.0001958,2]
[364940035,1749324455091,-440.0,0.0001958,2]
[364940036,1749324455112,-440.0,0.0001958,2]
[364940037,1749324455134,-440.0,0.0001958,2]
[364940038,1749324455156,-440.0,0.0001958,2]
[364940039,1749324455178,-500.0,0.0001958,2]
[364940040,1749324455199,-440.0,0.0001958,2]
[364940041,1749324455223,-440.0,0.0001958,2]
[364940042,1749324455246,-440.0,0.0001958,2]
[364940043,1749324455270,-440.0,0.0001958,2]
[364940044,1749324455291,-430.0,0.0001958,2]
[364940045,1749324455313,-430.0,0.0001958,2]
[364940046,1749324455337,-440.0,0.0001958,2]
[364940047,1749324455359,-430.0,0.0001958,2]
[364940048,1749324455380,-158.37182374,0.0001958,2]
[364940049,1749324470072,12947.56810261,0.00018,2]
[364940050,1749324470094,790.66024983,0.00018,2]
[364940053,1749324492845,412.13281442,0.00010618,2]
[364940060,1749324507007,275.82864309,0.00014114,2]
[364940063,1749324523084,1804.19315416,0.00015,2]
[364940064,1749324523984,209.23513284,0.00016,2]
[364940068,1749324551215,-390.54592318,0.00019576,2]
[364940069,1749324551237,-430.0,0.00019576,2]
[364940070,1749324551260,-149.74659923,0.00019576,2]
[364940071,1749324554131,-290.25340077,0.00019576,2]
[364940072,1749324554156,-440.0,0.00019576,2]
[364940073,1749324554180,-440.0,0.00019578,2]
[364940074,1749324554204,-271.62817626,0.0001958,2]
[364940075,1749324554228,-500.0,0.0001958,2]
[364940076,1749324554253,-440.0,0.0001958,2]
[364940077,1749324554278,-440.0,0.0001958,2]
[364940078,1749324554299,-560.63562434,0.0001958,2]
[364940079,1749324554322,-440.0,0.0001958,2]
[364940081,1749324554344,-430.0,0.0001958,2]
[364940082,1749324554368,-440.0,0.0001958,2]
[364940083,1749324554391,-354.52879825,0.0001958,2]
[364940084,1749324554415,-440.0,0.0001958,2]
[364940085,1749324554439,-440.0,0.0001958,2]
[364940086,1749324554462,-440.0,0.0001958,2]
[364940087,1749324554485,-430.0,0.0001958,2]
[364940088,1749324554507,-458.13271467,0.0001958,2]
[364940089,1749324554530,-440.0,0.0001958,2]
[364940090,1749324554551,-440.0,0.0001958,2]
[364940091,1749324554574,-440.0,0.0001958,2]
[364940092,1749324554598,-440.0,0.0001958,2]
[364940093,1749324554622,-440.0,0.0001958,2]
[364940094,1749324554645,-440.0,0.0001958,2]
[364940095,1749324554665,-440.0,0.0001958,2]
[364940096,1749324554687,-440.0,0.0001958,2]
[364940097,1749324554711,-440.0,0.0001958,2]
[364940098,1749324554734,-440.0,0.0001958,2]
[364940099,1749324554755,-440.0,0.0001958,2]
[364940100,1749324554776,-430.0,0.0001958,2]
[364940101,1749324554799,-440.0,0.00019581,2]
[364940102,1749324554823,-466.72587475,0.00019581,2]
[364940103,1749324554845,-430.0,0.00019581,2]
[364940104,1749324554866,-210.77051132,0.00019581,2]
[364940105,1749324554889,-500.0,0.00019581,2]
[364940106,1749324554912,-216.40825875,0.00019581,2]
[364940108,1749324554945,-300.8677708,0.00019581,2]
[364940109,1749324554965,-200.31749151,0.00019581,2]
[364940110,1749324554988,-369.00055322,0.00019581,2]
[364940111,1749324555025,-500.0,0.00019582,2]
[364940113,1749324555048,-509.1,0.00019582,2]
[364940114,1749324555069,-521.42349721,0.00019582,2]
[364940116,1749324555091,-321.46038597,0.00019582,2]
[364940117,1749324555117,-430.0,0.00019582,2]
[364940118,1749324555138,-430.0,0.00019582,2]
[364940119,1749324555158,-430.0,0.00019582,2]
[364940120,1749324555179,-440.0,0.00019582,2]
[364940121,1749324555200,-430.0,0.00019582,2]
[364940122,1749324555361,-430.0,0.00019582,2]
[364940123,1749324555384,-403.25091693,0.00019582,2]
[364940124,1749324555406,-430.0,0.00019582,2]
[364940125,1749324555428,-430.0,0.00019582,2]
[364940126,1749324555449,-430.0,0.00019582,2]
[364940127,1749324555470,-440.0,0.00019582,2]
[364940128,1749324555492,-440.0,0.00019582,2]
[364940129,1749324555512,-164.94476446,0.00019582,2]
[364940130,1749324555533,-430.0,0.00019582,2]
[364940131,1749324555554,-440.0,0.00019582,2]
[364940132,1749324555575,-430.0,0.00019582,2]
[364940133,1749324555596,-430.0,0.00019582,2]
[364940134,1749324555617,-532.34679198,0.00019582,2]
[364940135,1749324555638,-440.0,0.00019582,2]
[364940136,1749324555659,-440.0,0.00019582,2]
[364940137,1749324555680,-440.0,0.00019582,2]
[364940138,1749324555701,-483.0309688,0.00019582,2]
[364940139,1749324555722,-430.0,0.00019582,2]
[364940140,1749324555742,-430.0,0.00019582,2]
[364940141,1749324555763,-440.0,0.00019582,2]
[364940142,1749324555784,-430.0,0.00019582,2]
[364940143,1749324555805,-430.0,0.00019582,2]
[364940144,1749324555828,-430.0,0.00019582,2]
[364940145,1749324555848,-440.0,0.00019582,2]
[364940146,1749324555868,-430.0,0.00019582,2]
[364940147,1749324555888,-430.0,0.00019582,2]
[364940148,1749324555908,-440.0,0.00019582,2]
[364940149,1749324555928,-198.45412451,0.00019582,2]
[364940150,1749324555952,-430.0,0.00019582,2]
[364940151,1749324555974,-430.0,0.00019582,2]
[364940152,1749324555997,-430.0,0.00019582,2]
[364940153,1749324556019,-390.0,0.00019582,2]
[364940154,1749324556040,-430.0,0.00019582,2]
[364940155,1749324556060,-440.0,0.00019582,2]
[364940156,1749324556082,-430.0,0.00019582,2]
[364940157,1749324556104,-430.0,0.00019582,2]
[364940158,1749324556125,-504.45520168,0.00019582,2]
[364940159,1749324556146,-430.0,0.00019582,2]
[364940160,1749324556180,-440.0,0.00019582,2]
[364940161,1749324556204,-430.0,0.00019582,2]
[364940162,1749324556225,-430.0,0.00019582,2]
[364940163,1749324556246,-430.0,0.00019582,2]
[364940164,1749324556268,-430.0,0.00019582,2]
[364940165,1749324556289,-504.30959861,0.00019582,2]
[364940166,1749324556311,-300.0,0.00019582,2]
[364940167,1749324556332,-430.0,0.00019582,2]
[364940168,1749324556355,-500.0,0.00019582,2]
[364940169,1749324556378,-440.0,0.00019582,2]
[364940170,1749324556401,-420.0,0.00019582,2]
[364940171,1749324556423,-537.96474508,0.00019582,2]
[364940172,1749324556445,-400.0,0.00019582,2]
[364940173,1749324556467,-420.0,0.00019582,2]
[364940174,1749324556489,-317.43005961,0.00019582,2]
[364940175,1749324574244,166.548448,0.00013699,2]
[364940252,1749324631961,-184.46649823,0.00019574,2]
[364940254,1749324631971,-500.0,0.00019574,2]
[364940256,1749324631982,-581.24564575,0.00019574,2]
[364940258,1749324631993,-76022.906,0.00019575,2]
[364940260,1749324632003,-1726.78,0.00019576,2]
[364940262,1749324632013,-440.0,0.00019576,2]
[364940264,1749324632025,-440.0,0.00019576,2]
[364940266,1749324632035,-440.0,0.00019576,2]
[364940268,1749324632045,-440.0,0.00019576,2]
[364940271,1749324632055,-440.0,0.00019578,2]
[364940272,1749324632065,-440.0,0.00019578,2]
[364940274,1749324632075,-440.0,0.0001958,2]
[364940276,1749324632086,-291.18017293,0.0001958,2]